Cogmind - Beta 17 @@@ ROGUE MODE // 2026.07.26 @ 13:17:42 Player: JackZewap Result: Destroyed by S-10 Pest with Light Assault Rifle Performance ------------- Evolutions (0) 0 Regions Visited (2) 400 Robots Destroyed (12) 60 Value Destroyed (131) 131 Prototype IDs (0) 0 Alien Tech Used (0) 0 Bonus (0) 0 TOTAL SCORE: 591 Bonus ------- None Cogmind --------- Core Integrity 0/250 Matter 299/300 Energy 98/100 System Corruption 0% Temperature Cool (0) Movement Core (50) Location -10/Subcaves Parts ------- > --- POWER (1) -------- (None) > --- PROPULSION (2) --- (None) > --- UTILITY (2) ------ (None) > --- WEAPON (2) ------- (None) > --- INVENTORY (5) ---- Wheel Medium Laser Light Assault Rifle Grenade Launcher Peak State ------------ > --- POWER ------------ Ion Engine > --- PROPULSION ------- Aluminum Leg Aluminum Leg > --- UTILITY ---------- Medium Storage Unit Terrain Scanner > --- WEAPON ----------- Medium Laser Light Assault Rifle > --- INVENTORY -------- Light Ion Engine Light Treads Light Treads Wheel Medium Matter Pod Structural Scanner Medium Laser Light Assault Rifle Light Assault Rifle Grenade Launcher [Rating: 8] Favorites ----------- Power Ion Engine Engine Ion Engine Propulsion Light Treads Treads Light Treads Leg Aluminum Leg Utility Terrain Scanner Device Terrain Scanner Storage Small Storage Unit Weapon Light Assault Rifle Energy Gun Medium Laser Ballistic Gun Light Assault Rifle Launcher Grenade Launcher Build | -11 -10 -10 ------- Run | Yrd Mat Sub Slots Evolved . | . . . Power . | . . . Propulsion . | . . . Utility . | . . . Weapon . | . . . Parts Attached 14 | 6 8 . Power 1 | 1 . . Engine 1 | 1 . . Core . | . . . Reactor . | . . . Propulsion 4 | 2 2 . Treads 2 | 2 . . Leg 2 | . 2 . Wheel . | . . . Hover . | . . . Flight . | . . . Utility 3 | 1 2 . Device 1 | . 1 . Storage 2 | 1 1 . Processor . | . . . Hackware . | . . . Protection . | . . . Artifact . | . . . Weapon 6 | 2 4 . Energy Gun 2 | 1 1 . Energy Cannon . | . . . Ballistic Gun 3 | 1 2 . Ballistic Cannon . | . . . Launcher 1 | . 1 . Special Weapon . | . . . Impact Weapon . | . . . Slashing Weapon . | . . . Piercing Weapon . | . . . Special Melee Weapon . | . . . Unidentified Prototypes . | . . . Parts Lost 1 | . . 1 Power . | . . . Propulsion . | . . . Utility . | . . . Weapon 1 | . . 1 Highest Loss Streak 1 | . . 1 To Critical Strikes 1 | . . 1 Average Backups 4 | 1 4 8 Power . | . 1 . Propulsion 1 | . 1 2 Utility . | . . 1 Weapon 1 | . 1 3 Tool/Special . | . . . Unused Backups 5 | . 1 4 Power 1 | . . 1 Propulsion 1 | . . 1 Utility 3 | . 1 2 Weapon . | . . . Tool/Special . | . . . Average Slot Usage (%) 96 | . 97 86 Engine 13 | . 13 12 Treads 18 | . 21 . Leg 8 | . 6 25 Device 12 | . 12 12 Storage 13 | . 14 12 Energy Gun 13 | . 13 12 Ballistic Gun 13 | . 14 8 Peak Build Rating 8 | 6 8 8 Average Rating 6 | 4 7 6 On Entrance 4 | . 6 8 Avg Prop Armor Cover (%) . | . . . Naked Turns 13 | . . 13 Heaviest Build 19 | 13 19 19 Greatest Support 40 | 40 40 20 Greatest Overweight (x) 1 | 1 1 . Average Overweight (x) . | . . . Largest Inventory Capacity 10 | 8 10 10 Average Capacity 8 | 6 8 9 Most Carried 10 | 2 10 10 Average Carried 5 | 1 4 9 Final Capacity 10 | 8 10 5 Final Carried 10 | 2 10 4 Class Distribution -------------------- 100% | Mutant Dominant Class ---------------- Mutant | -10/Materials Mutant | -10/Subcaves Resources | -11 -10 -10 ----------- Run | Yrd Mat Sub Matter Collected 633 | 203 430 . Remotely . | . . . Salvage Created 218 | . 218 . Parts 24 | . 24 . Haulers Intercepted 1 | . 1 . Recyclers Shooed . | . . . Parts Field Recycled . | . . . Retrieved Matter . | . . . Parts Self-Destructed . | . . . Prevented . | . . . Parts Restored . | . . . Kills | -11 -10 -10 ------- Run | Yrd Mat Sub Combat Hostiles Destroyed 10 | . 10 . Guns 7 | . 7 . AOE 3 | . 3 . Classes Destroyed 4 | . 4 . Builder 1 | . 1 . Hauler 1 | . 1 . Swarmer 9 | . 9 . Grunt 1 | . 1 . Best Kill Streak 4 | . 4 . Combat Bots Only 3 | . 3 . Max Kills in Single Turn 4 | . 4 . Gunslinging . | . . . Exploded 3 | . 3 . Melee . | . . . Uniques/NPCs Destroyed . | . . . Combat | -11 -10 -10 -------- Run | Yrd Mat Sub Hostile Shots Fired 60 | . 28 32 Missed 17 | . 9 8 Hits 43 | . 19 24 Projectile 43 | . 19 24 Critical Strikes 1 | . . 1 Damage Taken 644 | . 191 453 Core 251 | . 33 218 Absorbed by Shields . | . . . Regen/Repaired (Parts) 19 | . 19 . Core Remaining (%) 100 | 100 . . Volleys Fired 21 | . 17 4 Largest 2 | . 2 2 Hottest 70 | . 70 70 Shots Fired 41 | . 33 8 Gun 40 | . 32 8 Cannon . | . . . Launcher 1 | . 1 . Special . | . . . Kinetic 23 | . 19 4 Thermal 17 | . 13 4 Explosive 1 | . 1 . Electromagnetic . | . . . Robot Hit Streak 19 | . 11 19 Robot Miss Streak 3 | . 3 . Penetration Max . | . . . Secondary Targets . | . . . Shots Hit Robots 29 | . 21 8 Core Hits 15 | . 15 . Critical Kills . | . . . Critical Parts Destroyed . | . . . Critical Strikes . | . . . Melee Attacks . | . . . Impact . | . . . Slashing . | . . . Piercing . | . . . Sneak Attacks . | . . . Combat Hostiles . | . . . Follow-up Attacks . | . . . Damage Inflicted 498 | . 419 79 Guns 283 | . 204 79 Cannons . | . . . Explosions 215 | . 215 . Melee . | . . . Ramming . | . . . Kinetic 133 | . 102 31 Thermal 150 | . 102 48 Explosive 215 | . 215 . Electromagnetic . | . . . Impact . | . . . Slashing . | . . . Piercing . | . . . Highest Corruption . | . . . Average Corruption . | . . . Corruption Purged . | . . . Corruption Blocked . | . . . Overload Shots . | . . . Overflow Damage 1 | . 1 . Projectiles . | . . . Explosions 1 | . 1 . Melee . | . . . Knockbacks . | . . . Impact . | . . . Kinetic . | . . . Secondary . | . . . Self-Inflicted Damage 25 | . 25 . Shots 1 | . 1 . Rammed . | . . . Targets Rammed . | . . . Kicked . | . . . Crushed . | . . . Highest Temperature 98 | . 98 1 Average Temperature 32 | . 34 1 Received Heat Transfer 123 | . 36 87 Siege Activations . | . . . Martial Activations . | . . . Shielding Activations . | . . . Robots Disrupted . | . . . Combat Hostiles . | . . . Robots Corrupted . | . . . Combat Hostiles . | . . . Parts Fried . | . . . Impact Corruptions . | . . . Robots Melted . | . . . Combat Hostiles . | . . . Parts Melted . | . . . Heat Transferred 444 | . 296 148 Parts Sabotaged . | . . . Parts Stolen . | . . . Parts Stripped . | . . . Power Chain Reactions . | . . . Alert | -11 -10 -10 ------- Run | Yrd Mat Sub Maximum Alert Level . | . . . Low Security (%) 100 | 100 100 . Level 1 . | . . . Level 2 . | . . . Level 3 . | . . . Level 4 . | . . . Level 5 . | . . . High Security . | . . . Max Security . | . . . Peak Influence 171 | . 171 . Initial . | . . . Average 43 | . 47 . Influence Increases 293 | . 293 . Destroy 0b10 Robot/C 200 | . 200 . Destroy 0b10 Robot/NC 10 | . 10 . Destroy Leader 32 | . 32 . Successful Hack 17 | . 17 . Destroy Structure 4 | . 4 . Lose Combat Pursuer 30 | . 30 . Influence Decreases 290 | . 171 119 Entered New Map 59 | . . 59 Time Decay 221 | . 171 50 Lost Part 10 | . . 10 Squads Dispatched . | . . . Investigation . | . . . Extermination . | . . . Reinforcement . | . . . Assault . | . . . Garrison . | . . . Intercept . | . . . Searches Triggered . | . . . Construction Impeded . | . . . Haulers Reinforced . | . . . Active Scanning Responses . | . . . Cargo Convoy Interrupts . | . . . Stealth | -11 -10 -10 --------- Run | Yrd Mat Sub Distress Signals . | . . . Communications Jammed . | . . . Distress Signals . | . . . Times Spotted 27 | . 16 11 Peak Tracking Total 11 | . 4 11 Tactical Retreats 2 | . 2 . Traps | -11 -10 -10 ------- Run | Yrd Mat Sub Traps Triggered 1 | . 1 . Indirectly . | . . . Trap Hack Attempts . | . . . Triggered . | . . . Disarmed . | . . . Reprogrammed . | . . . Reused . | . . . Traps Extracted . | . . . Installed . | . . . Triggered . | . . . Machines | -11 -10 -10 ---------- Run | Yrd Mat Sub Machines Disabled . | . . . Max in Single Turn . | . . . Machines Repaired . | . . . Machines Dismantled . | . . . Machines Sabotaged . | . . . Overloaded Fab Kills . | . . . Hacking | -11 -10 -10 --------- Run | Yrd Mat Sub Machines Accessed 5 | . 5 . Terminals 3 | . 3 . Fabricators . | . . . Repair Stations 1 | . 1 . Recycling Units 1 | . 1 . Scanalyzers . | . . . Garrison Access . | . . . Total Hacks 16 | . 16 . Successful 11 | . 11 . Failed 5 | . 5 . Catastrophic 2 | . 2 . Database Lockouts . | . . . Manual 15 | . 15 . Terminals 11 | . 11 . Fabricators . | . . . Repair Stations 2 | . 2 . Recycling Units 3 | . 3 . Scanalyzers . | . . . Garrison Access . | . . . Terminal Hacks 1 | . 1 . Terminal Index 1 | . 1 . Fabricator Hacks . | . . . Repair Station Hacks 2 | . 2 . Scan Component 1 | . 1 . Repair 1 | . 1 . Recycling Unit Hacks 1 | . 1 . Report Inventory 1 | . 1 . Scanalyzer . | . . . Garrison Access Hacks . | . . . Unauthorized Hacks 7 | . 7 . Terminals 5 | . 5 . Track 2 | . 2 . Botnet 2 | . 2 . Operators 1 | . 1 . Fabricators . | . . . Repair Stations . | . . . Recycling Units 2 | . 2 . Monitor 1 | . 1 . Reject 1 | . 1 . Scanalyzers . | . . . Garrison Access . | . . . Data Cores Recovered . | . . . Used . | . . . Hacking Detections 3 | . 3 . Full Trace Events . | . . . Feedback Events . | . . . Feedback Blocked . | . . . Robot Schematics Acquired . | . . . Robots Built . | . . . Authchips . | . . . Time . | . . . Total Robot Build Rating . | . . . Part Schematics Acquired . | . . . Parts Built . | . . . Authchips . | . . . Time . | . . . Total Part Build Rating . | . . . Part Studies Acquired . | . . . Parts Repaired 1 | . 1 . Time 26 | . 26 . Parts Recycled . | . . . Recycled Matter . | . . . Retrieved Matter . | . . . Retrieved Components . | . . . Parts Scanalyzed . | . . . Part Schematics Acquired . | . . . Parts Damaged . | . . . Bothacking | -11 -10 -10 ------------ Run | Yrd Mat Sub Used RIF Installer . | . . . Robots Hacked . | . . . Non-combat . | . . . Combat . | . . . Robot Hacks Applied . | . . . Relay Couplers Released . | . . . Fabnet Peak Effective % . | . . . Robots Rewired . | . . . Allies Hacked . | . . . Hacks Repelled . | . . . Allies | -11 -10 -10 -------- Run | Yrd Mat Sub Total Allies . | . . . Largest Group . | . . . Highest-Rated Group . | . . . Highest-Rated Ally . | . . . Total Orders . | . . . Ally Attacks . | . . . Total Damage . | . . . Kills . | . . . Allies Corrupted . | . . . Allies Melted . | . . . Intel | -11 -10 -10 ------- Run | Yrd Mat Sub Active Infowar (turns) 902 | . 797 105 Terrain 902 | . 797 105 Robot Analysis Total . | . . . Derelict Logs Recovered . | . . . Drone Launches . | . . . Drone Recoveries . | . . . Exploration | -11 -10 -10 ------------- Run | Yrd Mat Sub Turns Passed 1077 | 74 885 118 Spaces Moved 430 | 43 309 78 Core 28 | 6 . 22 Treads 245 | 37 208 . Legs 157 | . 101 56 Wheels . | . . . Hover . | . . . Flight . | . . . Fastest Speed 50 | 50 120 50 Average Speed 138 | 149 147 100 Slowest Speed 190 | 160 190 120 Overloaded Moves . | . . . Propulsion Burnouts . | . . . Robots Hopped . | . . . Potential Cave-ins . | . . . Cave-ins Triggered . | . . . Exploration Rate (%) 16 | 4 36 9 Regions Visited 2 Branch Regions 1 Pre-discovered Areas . | . . . Known Exits Taken . | . . . Unknown Exits Taken 2 | 1 1 . Scrap Searched . | . . . Spaces Dug . | . . . Terrain Destroyed 4 | . 4 . Melee . | . . . Projectile . | . . . AOE 4 | . 4 . Terrain Rammed . | . . . Walls Destroyed . | . . . Machines Disabled . | . . . Actions | -11 -10 -10 --------- Run | Yrd Mat Sub Total 873 | 50 708 115 Wait 384 | . 360 24 Move 428 | 42 308 78 Hop . | . . . Pick Up 8 | 2 5 1 Fast Attach 14 | 6 8 . Attach . | . . . Detach 4 | . 4 . Swap 4 | . 4 . Drop 10 | . 2 8 Fire 21 | . 17 4 Melee . | . . . Ram . | . . . Kick . | . . . Crush . | . . . Escape Stasis . | . . . Rewire . | . . . Trap . | . . . Miscellaneous . | . . . Route ------- -11/Scrapyard -10/Materials (discovered 2 exits: [*Min] / [*Sub]) -10/Subcaves (discovered 1 exit: [*Rec]) History --------- Turn | Location | Event 5 | -11/Scrapyard | Discovered new exit (range 16) 75 | -11/Scrapyard | Entered Materials 338 | -10/Materials | Build established: Mutant 672 | -10/Materials | Discovered new exit (range 10) 699 | -10/Materials | Discovered new exit (range 6) 846 | -10/Materials | Repaired Structural Scanner 960 | -10/Materials | Entered Subcaves 1025 | -10/Subcaves | Core integrity fell below 50% 1035 | -10/Subcaves | Core integrity fell below 20% 1076 | -10/Subcaves | Discovered new exit (range 15) 1078 | -10/Subcaves | Destroyed by S-10 Pest with Light Assault Rifle Last Messages --------------- 00919_ >> MONITOR: Recycling Unit M002 accepting Med. Matter Pod (100%). 00929_ Destroyed Flight Unit. 00931_ S-10 Pest destroyed. 00945_ Connecting with D.C.S.S. Altar Unit... LOCATION=UNKNOWN AMBIENT_HEAT=-10 GOAL=ESCAPE 01020_ Critical hit (Destroy). 01020_ Lgt. Assault Rifle destroyed. 01050_ Subatomizers dissect the Sub. Optics. 01051_ 9Y-NUR(R) emerges from the Twisted Machinery. 01063_ Dropped Med. Storage Unit. 01063_ Dropped Ion Engine. 01064_ Dropped Aluminum Leg. 01065_ Dropped Terrain Scanner. 01065_ Dropped Med. Laser. 01066_ Dropped Lgt. Ion Engine. 01066_ Dropped Lgt. Treads. 01067_ Acquired Grenade Launcher. 01076_ EXIT=FOUND Map ----- +----------------------------------------------------+ | ? ????# ?#### ### # ## ## # ##????????????????? | | ?# ?###[!## ##########?????? ??????????? | | ## # %# ##?????????????????????????? | | ! #?????????????????????????? | | ?""" ####?????????????????????????? | | ??#"""# ## ##????????????????????????????? | | ??????## ### #?????????????????????????????? | | ???????## #?## ????????????????????????????? | | ????????# #??## ????????? ?????????????? | | ????????## #???######?????? ????????????????? | | ????????## ###########???? #?????????????????? | | ????????# [##*= # ## #??? #?????????????????? | | ????????## =[! = ### #???????????????????? | | ?????????# *!!=! ##???????????????????? | | ?????????###### ## #???????????????????? | | ??????????????###### #%### ##???????????????????? | | ??????????????????# ###?? %#???????????????????? | | ?????????#????????## ##??? #???????????????????? | | ??????????????????# #??? #???####????????????? | | ?????????????#????## ##?##%!##?? """#????????????? | | ??????????????????# ### #? "#????????????? | | ??????????????????## ### # "#????????????? | | ??????????????????# ## ss t""##???????????? | | ??????????#???????## <#???????????? | | ???????????????????#% ss ""?????????????? | | ???????????????????#### @ ### "#????????????? | | ??????????????????????## ##?????? ??????????????? | | ??????????????????????# ##??????????????????????? | | ?????????????????????# #???????????????????????? | | ???????????????????? ##???????????????????????? | | ??????????????????? ?????????????????????????? | | ??????????????????# #?????????????????????????? | | ??????????????????# ??????????????????????????? | | ?????????????????? #??????????????????????????? | | ????????????????? #???????????????????????????? | | ???????????????? #????????????????????????????? | | ???????????????# #?????????????????????????????? | | ???????????????? ??????????????????????????????? | | ?????????????????????????????????????????????????? | | ?????????????????????????????????????????????????? | | ?????????????????????????????????????????????????? | | ?????????????????????????????????????????????????? | | ?????????????????????????????????????????????????? | | ?????????????????????????????????????????????????? | | ?????????????????????????????????????????????????? | | ?????????????????????????????????????????????????? | | ?????????????????????????????????????????????????? | | ?????????????????????????????????????????????????? | | ?????????????????????????????????????????????????? | | ?????????????????????????????????????????????????? | +----------------------------------------------------+ Best States ------------- Heat Dissipation 25 Energy Generation 10 Energy Capacity 250 Matter Stores 300 Matter Capacity 300 Sight Range 16 Terrain Scan Range 14 Terrain Scan Density 10 Evasion (%) 55 Recoil Reduction 2 Item Schematics ----------------- None Robot Schematics ------------------ None Fabricated ------------ Nothing Repaired ---------- Structural Scanner | 5% | -10/Materials Studied --------- None Alien Tech Used ----------------- None Achievements -------------- None Challenges ------------ None Game ------ Seed ChromaticWardroneMallet Manual? 0 Play Time 00:08:01 Cumulative 138.9 hours Start 2026.07.25 @ 18:15:02 End 2026.07.26 @ 13:17:42 Sessions 2 Manual Loads 0 Difficulty Rogue Special Mode None Game No. 176 Rogue 170 Adventurer 6 Explorer 0 Win Type - Total 1 Types 1/0/0/0/0/0/0/0/0/0 Lore% 27 Gallery% 55 Achievement% 30 Wizard Run 0 Options --------- Layout 0 ASCII 0 Keyboard 1 Movement Numpad Keybinds 0 Fullscreen 2 Font 18/SmallcapsGlow Map View 76x50 Zoom Use 0% Tactical HUD 1 Map Filters NONE Filters NONE Steam 1 RUN: 23245453-2e94-4c07-9a5a-1a5e28e73415